[Event "December 12 Early 2023"]
[Site "https://www.chess.com"]
[Date "2023.12.12"]
[Round "10"]
[White "Srihari L R"]
[Black "Kislinsky, Alexey"]
[Result "1-0"]
[Board "46"]
[TimeControl "180+1"]
[WhiteFideId "46617116"]
[BlackFideId "14108801"]
[WhiteElo "2734"]
[BlackElo "2656"]
[WhiteTeam "IND"]
[BlackTeam "CZE"]
[WhiteClock "0:00:14"]
[BlackClock "0:00:21"]

1. c4 {[%clk 0:03:00]}  g6 {[%clk 0:02:59]} 2. Nc3 {[%clk 0:02:55]}  c5 {[%clk 0:02:57]} 3. Nf3 {[%clk 0:02:54]}  Bg7 {[%clk 0:02:57]} 4. e3 {[%clk 0:02:54]}  d6 {[%clk 0:02:54]} 5. d4 {[%clk 0:02:54]}  cxd4 {[%clk 0:02:53]} 6. exd4 {[%clk 0:02:53]}  Nf6 {[%clk 0:02:53]} 7. Be2 {[%clk 0:02:51]}  O-O {[%clk 0:02:54]} 8. O-O {[%clk 0:02:50]}  Nc6 {[%clk 0:02:54]} 9. d5 {[%clk 0:02:48]}  Nb8 {[%clk 0:02:46]} 10. h3 {[%clk 0:02:46]}  Nbd7 {[%clk 0:02:45]} 11. Re1 {[%clk 0:02:45]}  Nc5 {[%clk 0:02:42]} 12. Bf1 {[%clk 0:02:44]}  Bd7 {[%clk 0:02:42]} 13. Bf4 {[%clk 0:02:43]}  Rc8 {[%clk 0:02:37]} 14. Qd2 {[%clk 0:02:37]}  a5 {[%clk 0:02:34]} 15. Bh6 {[%clk 0:02:37]}  Re8 {[%clk 0:02:29]} 16. Bxg7 {[%clk 0:02:36]}  Kxg7 {[%clk 0:02:30]} 17. Nd4 {[%clk 0:02:36]}  e5 {[%clk 0:02:09]} 18. dxe6 {[%clk 0:02:29]}  Bxe6 {[%clk 0:02:09]} 19. Rad1 {[%clk 0:02:21]}  Qb6 {[%clk 0:02:02]} 20. Ndb5 {[%clk 0:02:13]}  Rcd8 {[%clk 0:01:52]} 21. Nxd6 {[%clk 0:01:58]}  Rh8 {[%clk 0:01:43]} 22. Ncb5 {[%clk 0:01:33]}  Nce4 {[%clk 0:01:39]} 23. Qe3 {[%clk 0:01:05]}  Qxe3 {[%clk 0:01:23]} 24. Rxe3 {[%clk 0:01:06]}  Nxd6 {[%clk 0:01:21]} 25. Nxd6 {[%clk 0:01:04]}  b6 {[%clk 0:01:18]} 26. Rb3 {[%clk 0:00:56]}  Nd7 {[%clk 0:01:16]} 27. Rbd3 {[%clk 0:00:52]}  Rb8 {[%clk 0:00:59]} 28. b3 {[%clk 0:00:41]}  Nc5 {[%clk 0:00:58]} 29. Rd4 {[%clk 0:00:41]}  Rhd8 {[%clk 0:00:55]} 30. Nf5+ {[%clk 0:00:40]}  Bxf5 {[%clk 0:00:55]} 31. Rxd8 {[%clk 0:00:41]}  Rxd8 {[%clk 0:00:55]} 32. Rxd8 {[%clk 0:00:42]}  Bb1 {[%clk 0:00:54]} 33. Rd2 {[%clk 0:00:42]}  Kf6 {[%clk 0:00:52]} 34. Rb2 {[%clk 0:00:39]}  Bf5 {[%clk 0:00:51]} 35. a3 {[%clk 0:00:39]}  Ke5 {[%clk 0:00:50]} 36. b4 {[%clk 0:00:37]}  Na4 {[%clk 0:00:46]} 37. Rd2 {[%clk 0:00:36]}  Be6 {[%clk 0:00:43]} 38. Rd8 {[%clk 0:00:33]}  Nb2 {[%clk 0:00:40]} 39. c5 {[%clk 0:00:30]}  bxc5 {[%clk 0:00:31]} 40. bxc5 {[%clk 0:00:20]}  Na4 {[%clk 0:00:29]} 41. c6 {[%clk 0:00:21]}  Nb6 {[%clk 0:00:29]} 42. c7 {[%clk 0:00:20]}  Bc8 {[%clk 0:00:24]} 43. Rxc8 {[%clk 0:00:17]}  Nxc8 {[%clk 0:00:25]} 44. Ba6 {[%clk 0:00:17]}  Nb6 {[%clk 0:00:23]} 45. c8=Q {[%clk 0:00:13]}  Nxc8 {[%clk 0:00:23]} 46. Bxc8 {[%clk 0:00:14]}  Kd4 {[%clk 0:00:21]} 47. a4 {[%clk 0:00:14]} 1-0

[Event "December 12 Early 2023"]
[Site "https://www.chess.com"]
[Date "2023.12.12"]
[Round "10"]
[White "Pakleza, Zbigniew"]
[Black "Silva Lucena, Cristian"]
[Result "1-0"]
[Board "47"]
[TimeControl "180+1"]
[WhiteFideId "1119290"]
[BlackFideId "2232588"]
[WhiteElo "2711"]
[BlackElo "2543"]
[WhiteTeam "POL"]
[BlackTeam "ESP"]
[WhiteClock "0:00:05"]
[BlackClock "0:00:01"]

1. d4 {[%clk 0:03:00]}  d5 {[%clk 0:02:58]} 2. Nf3 {[%clk 0:02:59]}  e6 {[%clk 0:02:59]} 3. Bf4 {[%clk 0:02:59]}  Bd6 {[%clk 0:02:57]} 4. Bg3 {[%clk 0:02:59]}  Nf6 {[%clk 0:02:56]} 5. Nbd2 {[%clk 0:02:59]}  b6 {[%clk 0:02:56]} 6. e3 {[%clk 0:02:59]}  Ba6 {[%clk 0:02:55]} 7. Bxa6 {[%clk 0:02:59]}  Nxa6 {[%clk 0:02:56]} 8. c4 {[%clk 0:03:00]}  O-O {[%clk 0:02:54]} 9. Qa4 {[%clk 0:02:56]}  Nb8 {[%clk 0:02:51]} 10. Rc1 {[%clk 0:02:55]}  c6 {[%clk 0:02:50]} 11. O-O {[%clk 0:02:51]}  Qe7 {[%clk 0:02:47]} 12. Ne5 {[%clk 0:02:44]}  Bxe5 {[%clk 0:02:47]} 13. dxe5 {[%clk 0:02:30]}  Nfd7 {[%clk 0:02:44]} 14. b4 {[%clk 0:02:22]}  a5 {[%clk 0:02:39]} 15. cxd5 {[%clk 0:02:11]}  exd5 {[%clk 0:02:35]} 16. b5 {[%clk 0:01:59]}  c5 {[%clk 0:02:28]} 17. Nf3 {[%clk 0:01:50]}  f6 {[%clk 0:02:07]} 18. Qb3 {[%clk 0:01:48]}  c4 {[%clk 0:02:05]} 19. Qd1 {[%clk 0:01:48]}  Qf7 {[%clk 0:02:00]} 20. Qd4 {[%clk 0:01:40]}  fxe5 {[%clk 0:01:55]} 21. Nxe5 {[%clk 0:01:33]}  Nxe5 {[%clk 0:01:55]} 22. Bxe5 {[%clk 0:01:31]}  Nd7 {[%clk 0:01:55]} 23. Bd6 {[%clk 0:01:26]}  Rfe8 {[%clk 0:01:54]} 24. Rfd1 {[%clk 0:01:25]}  Nf6 {[%clk 0:01:38]} 25. Be5 {[%clk 0:01:09]}  Nd7 {[%clk 0:01:25]} 26. Bg3 {[%clk 0:01:06]}  Nc5 {[%clk 0:00:57]} 27. Qxd5 {[%clk 0:01:00]}  Qxd5 {[%clk 0:00:57]} 28. Rxd5 {[%clk 0:01:01]}  Rad8 {[%clk 0:00:57]} 29. Rxd8 {[%clk 0:00:46]}  Rxd8 {[%clk 0:00:58]} 30. h4 {[%clk 0:00:41]}  Rd2 {[%clk 0:00:50]} 31. Rxc4 {[%clk 0:00:41]}  Rxa2 {[%clk 0:00:50]} 32. Bc7 {[%clk 0:00:39]}  Nd3 {[%clk 0:00:49]} 33. Bxb6 {[%clk 0:00:34]}  a4 {[%clk 0:00:44]} 34. Bd4 {[%clk 0:00:28]}  a3 {[%clk 0:00:33]} 35. b6 {[%clk 0:00:21]}  Rb2 {[%clk 0:00:33]} 36. Ra4 {[%clk 0:00:21]}  Rb1+ {[%clk 0:00:30]} 37. Kh2 {[%clk 0:00:21]}  Rb3 {[%clk 0:00:19]} 38. f3 {[%clk 0:00:14]}  Nb4 {[%clk 0:00:18]} 39. Ra8+ {[%clk 0:00:08]}  Kf7 {[%clk 0:00:17]} 40. Ra7+ {[%clk 0:00:08]}  Ke6 {[%clk 0:00:15]} 41. Bxg7 {[%clk 0:00:07]}  Nd5 {[%clk 0:00:13]} 42. b7 {[%clk 0:00:06]}  Nxe3 {[%clk 0:00:12]} 43. Rxa3 {[%clk 0:00:05]}  Nf1+ {[%clk 0:00:01]} 44. Kg1 {[%clk 0:00:05]} 1-0

[Event "December 12 Early 2023"]
[Site "https://www.chess.com"]
[Date "2023.12.12"]
[Round "10"]
[White "Gontcharov, Vladislav"]
[Black "Bazilius, Augustinas"]
[Result "1-0"]
[Board "49"]
[TimeControl "180+1"]
[WhiteFideId "4123492"]
[BlackFideId "12832251"]
[WhiteElo "2669"]
[BlackElo "2457"]
[WhiteTeam "RUS"]
[BlackTeam "LTU"]
[WhiteClock "0:00:53"]
[BlackClock "0:00:00"]

1. d4 {[%clk 0:03:00]}  Nf6 {[%clk 0:02:59]} 2. c4 {[%clk 0:03:00]}  g6 {[%clk 0:03:00]} 3. Nc3 {[%clk 0:02:59]}  d6 {[%clk 0:03:01]} 4. Nf3 {[%clk 0:02:56]}  Bg7 {[%clk 0:03:01]} 5. Bg5 {[%clk 0:02:56]}  O-O {[%clk 0:02:51]} 6. e3 {[%clk 0:02:56]}  Nbd7 {[%clk 0:02:47]} 7. Be2 {[%clk 0:02:54]}  c5 {[%clk 0:02:45]} 8. O-O {[%clk 0:02:47]}  cxd4 {[%clk 0:02:44]} 9. Nxd4 {[%clk 0:02:47]}  Ne5 {[%clk 0:02:39]} 10. Rc1 {[%clk 0:02:42]}  a6 {[%clk 0:02:34]} 11. b3 {[%clk 0:02:30]}  Rb8 {[%clk 0:02:31]} 12. h3 {[%clk 0:02:24]}  Qc7 {[%clk 0:02:11]} 13. Bxf6 {[%clk 0:02:22]}  exf6 {[%clk 0:02:07]} 14. Nd5 {[%clk 0:02:19]}  Qd8 {[%clk 0:02:02]} 15. Qd2 {[%clk 0:02:11]}  Be6 {[%clk 0:01:48]} 16. Qb4 {[%clk 0:02:05]}  Nc6 {[%clk 0:01:37]} 17. Qd2 {[%clk 0:01:56]}  Bxd5 {[%clk 0:01:23]} 18. cxd5 {[%clk 0:01:56]}  Nxd4 {[%clk 0:01:17]} 19. Qxd4 {[%clk 0:01:56]}  f5 {[%clk 0:01:17]} 20. Qb4 {[%clk 0:01:55]}  Qd7 {[%clk 0:01:09]} 21. Rc4 {[%clk 0:01:48]}  Rbc8 {[%clk 0:01:09]} 22. Rfc1 {[%clk 0:01:47]}  Rxc4 {[%clk 0:01:05]} 23. Qxc4 {[%clk 0:01:47]}  Bf6 {[%clk 0:00:58]} 24. Qc7 {[%clk 0:01:42]}  Rd8 {[%clk 0:00:58]} 25. Qxd7 {[%clk 0:01:37]}  Rxd7 {[%clk 0:00:59]} 26. Rc8+ {[%clk 0:01:38]}  Kg7 {[%clk 0:00:59]} 27. f4 {[%clk 0:01:37]}  h6 {[%clk 0:00:57]} 28. Kf2 {[%clk 0:01:37]}  Bb2 {[%clk 0:00:50]} 29. g4 {[%clk 0:01:33]}  fxg4 {[%clk 0:00:47]} 30. hxg4 {[%clk 0:01:33]}  Ba3 {[%clk 0:00:45]} 31. e4 {[%clk 0:01:29]}  Bb2 {[%clk 0:00:40]} 32. Ke3 {[%clk 0:01:28]}  f6 {[%clk 0:00:36]} 33. Kd3 {[%clk 0:01:25]}  Ba3 {[%clk 0:00:27]} 34. Bf3 {[%clk 0:01:09]}  g5 {[%clk 0:00:22]} 35. e5 {[%clk 0:01:09]}  dxe5 {[%clk 0:00:15]} 36. fxe5 {[%clk 0:01:09]}  fxe5 {[%clk 0:00:14]} 37. Be4 {[%clk 0:01:09]}  Bd6 {[%clk 0:00:11]} 38. Bf5 {[%clk 0:01:09]}  Rc7 {[%clk 0:00:11]} 39. Rd8 {[%clk 0:01:07]}  Be7 {[%clk 0:00:11]} 40. Re8 {[%clk 0:01:03]}  Bf6 {[%clk 0:00:03]} 41. d6 {[%clk 0:00:59]}  Rc6 {[%clk 0:00:03]} 42. d7 {[%clk 0:01:00]}  Rd6+ {[%clk 0:00:04]} 43. Ke4 {[%clk 0:00:59]}  Rd4+ {[%clk 0:00:04]} 44. Ke3 {[%clk 0:00:59]}  Kf7 {[%clk 0:00:04]} 45. Rb8 {[%clk 0:00:55]}  b5 {[%clk 0:00:04]} 46. Rb6 {[%clk 0:00:53]}  Be7 {[%clk 0:00:00]} 47. Rxh6 {[%clk 0:00:53]} 1-0

[Event "December 12 Early 2023"]
[Site "https://www.chess.com"]
[Date "2023.12.12"]
[Round "10"]
[White "Cordoba Roa, Angel Gabriel"]
[Black "Chlpik, Martin"]
[Result "1-0"]
[Board "51"]
[TimeControl "180+1"]
[WhiteFideId "3957624"]
[BlackFideId "14923351"]
[WhiteElo "2592"]
[BlackElo "2385"]
[WhiteTeam "COL"]
[BlackTeam "SVK"]
[WhiteClock "0:00:14"]
[BlackClock "0:00:02"]

1. e4 {[%clk 0:03:00]}  c5 {[%clk 0:02:59]} 2. Nf3 {[%clk 0:03:00]}  d6 {[%clk 0:02:59]} 3. Bb5+ {[%clk 0:03:01]}  Bd7 {[%clk 0:02:59]} 4. c4 {[%clk 0:03:01]}  a6 {[%clk 0:02:58]} 5. Bxd7+ {[%clk 0:02:59]}  Qxd7 {[%clk 0:02:58]} 6. Nc3 {[%clk 0:03:00]}  Nc6 {[%clk 0:02:59]} 7. O-O {[%clk 0:03:00]}  Nf6 {[%clk 0:02:59]} 8. Rb1 {[%clk 0:02:57]}  g6 {[%clk 0:02:59]} 9. a3 {[%clk 0:02:58]}  b5 {[%clk 0:02:55]} 10. cxb5 {[%clk 0:02:53]}  axb5 {[%clk 0:02:56]} 11. Nxb5 {[%clk 0:02:54]}  Nxe4 {[%clk 0:02:55]} 12. Re1 {[%clk 0:02:54]}  Nf6 {[%clk 0:02:53]} 13. d4 {[%clk 0:02:54]}  cxd4 {[%clk 0:02:48]} 14. Nbxd4 {[%clk 0:02:54]}  Nxd4 {[%clk 0:02:37]} 15. Nxd4 {[%clk 0:02:55]}  Bg7 {[%clk 0:02:36]} 16. b4 {[%clk 0:02:51]}  O-O {[%clk 0:02:35]} 17. b5 {[%clk 0:02:52]}  Nd5 {[%clk 0:02:34]} 18. Bb2 {[%clk 0:02:49]}  Nf4 {[%clk 0:02:18]} 19. Nc6 {[%clk 0:02:42]}  Bxb2 {[%clk 0:02:02]} 20. Nxe7+ {[%clk 0:02:41]}  Kg7 {[%clk 0:01:57]} 21. Rxb2 {[%clk 0:02:40]}  Ne6 {[%clk 0:01:41]} 22. Nd5 {[%clk 0:02:35]}  Rxa3 {[%clk 0:01:39]} 23. b6 {[%clk 0:02:36]}  Qb7 {[%clk 0:01:33]} 24. Ne3 {[%clk 0:02:25]}  Rd8 {[%clk 0:01:18]} 25. Nc4 {[%clk 0:01:47]}  Ra6 {[%clk 0:01:06]} 26. Qb3 {[%clk 0:01:32]}  d5 {[%clk 0:00:58]} 27. Ne5 {[%clk 0:01:31]}  Rd6 {[%clk 0:00:47]} 28. Reb1 {[%clk 0:01:06]}  Raxb6 {[%clk 0:00:42]} 29. Qxb6 {[%clk 0:01:07]}  Rxb6 {[%clk 0:00:42]} 30. Rxb6 {[%clk 0:01:08]}  Qc7 {[%clk 0:00:42]} 31. Nxf7 {[%clk 0:01:08]}  Nc5 {[%clk 0:00:23]} 32. Nd6 {[%clk 0:01:03]}  Kh6 {[%clk 0:00:15]} 33. Nb7 {[%clk 0:00:58]}  Na4 {[%clk 0:00:12]} 34. R6b4 {[%clk 0:00:30]}  Nc3 {[%clk 0:00:12]} 35. Re1 {[%clk 0:00:30]}  d4 {[%clk 0:00:10]} 36. Rxd4 {[%clk 0:00:30]}  Qxb7 {[%clk 0:00:09]} 37. Rh4+ {[%clk 0:00:30]}  Kg7 {[%clk 0:00:08]} 38. Rc4 {[%clk 0:00:29]}  Nd5 {[%clk 0:00:07]} 39. Rd4 {[%clk 0:00:29]}  Qb3 {[%clk 0:00:06]} 40. Red1 {[%clk 0:00:27]}  Nf6 {[%clk 0:00:06]} 41. R4d3 {[%clk 0:00:27]}  Qb2 {[%clk 0:00:06]} 42. h3 {[%clk 0:00:26]}  Ne4 {[%clk 0:00:06]} 43. Rf3 {[%clk 0:00:26]}  Nd2 {[%clk 0:00:05]} 44. Re3 {[%clk 0:00:22]}  Qc2 {[%clk 0:00:05]} 45. Rde1 {[%clk 0:00:20]}  Nc4 {[%clk 0:00:06]} 46. R3e2 {[%clk 0:00:21]}  Qd3 {[%clk 0:00:04]} 47. Re7+ {[%clk 0:00:21]}  Kh6 {[%clk 0:00:04]} 48. Rc7 {[%clk 0:00:21]}  Nd2 {[%clk 0:00:04]} 49. Rce7 {[%clk 0:00:18]}  Nc4 {[%clk 0:00:03]} 50. R7e4 {[%clk 0:00:18]}  Nd6 {[%clk 0:00:03]} 51. Rh4+ {[%clk 0:00:17]}  Kg7 {[%clk 0:00:04]} 52. Rb4 {[%clk 0:00:18]}  Nf5 {[%clk 0:00:03]} 53. Rb2 {[%clk 0:00:16]}  Qc3 {[%clk 0:00:03]} 54. Rbe2 {[%clk 0:00:16]}  Nd4 {[%clk 0:00:03]} 55. Re3 {[%clk 0:00:16]}  Qc2 {[%clk 0:00:02]} 56. Re4 {[%clk 0:00:15]}  Nf5 {[%clk 0:00:02]} 57. g3 {[%clk 0:00:14]}  Kh6 {[%clk 0:00:02]} 58. Kg2 {[%clk 0:00:15]}  Qd2 {[%clk 0:00:02]} 59. h4 {[%clk 0:00:14]}  Qd5 {[%clk 0:00:03]} 60. Kh2 {[%clk 0:00:13]}  Nd6 {[%clk 0:00:03]} 61. R4e2 {[%clk 0:00:13]}  Qc5 {[%clk 0:00:04]} 62. Rd1 {[%clk 0:00:13]}  Nf5 {[%clk 0:00:04]} 63. h5 {[%clk 0:00:13]}  gxh5 {[%clk 0:00:03]} 64. Re6+ {[%clk 0:00:13]}  Kg5 {[%clk 0:00:04]} 65. Re2 {[%clk 0:00:13]}  Qc4 {[%clk 0:00:04]} 66. Rde1 {[%clk 0:00:13]}  Kg4 {[%clk 0:00:04]} 67. Re4+ {[%clk 0:00:13]}  Qxe4 {[%clk 0:00:04]} 68. Rxe4+ {[%clk 0:00:14]}  Kg5 {[%clk 0:00:04]} 69. Kg2 {[%clk 0:00:14]}  Nh6 {[%clk 0:00:04]} 70. Kh3 {[%clk 0:00:14]}  Ng4 {[%clk 0:00:04]} 71. Kg2 {[%clk 0:00:14]}  Nf6 {[%clk 0:00:03]} 72. Ra4 {[%clk 0:00:14]}  Ng4 {[%clk 0:00:03]} 73. f3 {[%clk 0:00:14]}  Nf6 {[%clk 0:00:03]} 74. Ra5+ {[%clk 0:00:14]}  Kg6 {[%clk 0:00:04]} 75. Kh3 {[%clk 0:00:14]}  h6 {[%clk 0:00:04]} 76. Kh4 {[%clk 0:00:15]}  Nh7 {[%clk 0:00:04]} 77. Rxh5 {[%clk 0:00:13]}  Ng5 {[%clk 0:00:04]} 78. Rxg5+ {[%clk 0:00:13]}  hxg5+ {[%clk 0:00:02]} 79. Kg4 {[%clk 0:00:14]} 1-0

[Event "December 12 Early 2023"]
[Site "https://www.chess.com"]
[Date "2023.12.12"]
[Round "10"]
[White "Melikhov, Evgeny V."]
[Black "Putnam, Liam"]
[Result "0-1"]
[Board "52"]
[TimeControl "180+1"]
[WhiteFideId "4122046"]
[BlackFideId "30938279"]
[WhiteElo "2422"]
[BlackElo "2823"]
[WhiteTeam "GRE"]
[BlackTeam "USA"]
[WhiteClock "0:00:00"]
[BlackClock "0:01:21"]

1. d4 {[%clk 0:03:00]}  e6 {[%clk 0:03:00]} 2. c4 {[%clk 0:03:00]}  Ke7 {[%clk 0:03:01]} 3. e4 {[%clk 0:02:56]}  Qe8 {[%clk 0:03:01]} 4. Nc3 {[%clk 0:02:55]}  Kd8 {[%clk 0:03:02]} 5. f3 {[%clk 0:02:54]}  f5 {[%clk 0:02:57]} 6. e5 {[%clk 0:02:50]}  Bb4 {[%clk 0:02:56]} 7. f4 {[%clk 0:02:47]}  Bxc3+ {[%clk 0:02:52]} 8. bxc3 {[%clk 0:02:47]}  Ne7 {[%clk 0:02:53]} 9. Nf3 {[%clk 0:02:47]}  b6 {[%clk 0:02:53]} 10. a4 {[%clk 0:02:45]}  Bb7 {[%clk 0:02:52]} 11. a5 {[%clk 0:02:43]}  Qh5 {[%clk 0:02:50]} 12. Be2 {[%clk 0:02:40]}  h6 {[%clk 0:02:48]} 13. O-O {[%clk 0:02:34]}  Rg8 {[%clk 0:02:40]} 14. c5 {[%clk 0:02:08]}  bxc5 {[%clk 0:02:32]} 15. Qb3 {[%clk 0:02:06]}  Ba6 {[%clk 0:02:23]} 16. Bxa6 {[%clk 0:02:02]}  Nxa6 {[%clk 0:02:24]} 17. Qb7 {[%clk 0:01:58]}  Rb8 {[%clk 0:02:23]} 18. Qxa6 {[%clk 0:01:58]}  g5 {[%clk 0:02:19]} 19. Qxa7 {[%clk 0:01:52]}  Nc6 {[%clk 0:02:19]} 20. Qxc5 {[%clk 0:01:51]}  g4 {[%clk 0:02:19]} 21. Ne1 {[%clk 0:01:40]}  g3 {[%clk 0:02:19]} 22. h3 {[%clk 0:01:40]}  Qe2 {[%clk 0:02:19]} 23. Nf3 {[%clk 0:01:31]}  Ne7 {[%clk 0:02:19]} 24. a6 {[%clk 0:01:19]}  Nd5 {[%clk 0:02:18]} 25. a7 {[%clk 0:01:17]}  Ra8 {[%clk 0:02:19]} 26. Qa3 {[%clk 0:01:09]}  Qd3 {[%clk 0:02:15]} 27. Qb3 {[%clk 0:01:04]}  Nxc3 {[%clk 0:02:13]} 28. Qb7 {[%clk 0:00:57]}  Ke7 {[%clk 0:02:08]} 29. Ba3+ {[%clk 0:00:54]}  Kf7 {[%clk 0:02:08]} 30. Qxc7 {[%clk 0:00:55]}  Rgd8 {[%clk 0:02:03]} 31. Bc5 {[%clk 0:00:53]}  Ne2+ {[%clk 0:02:02]} 32. Kh1 {[%clk 0:00:53]}  Nxf4 {[%clk 0:02:03]} 33. Rad1 {[%clk 0:00:49]}  Qe2 {[%clk 0:02:00]} 34. Rg1 {[%clk 0:00:46]}  Nxh3 {[%clk 0:01:58]} 35. d5 {[%clk 0:00:39]}  Rac8 {[%clk 0:01:46]} 36. Qd6 {[%clk 0:00:38]}  Rxc5 {[%clk 0:01:43]} 37. dxe6+ {[%clk 0:00:37]}  dxe6 {[%clk 0:01:36]} 38. Qxc5 {[%clk 0:00:22]}  Rxd1 {[%clk 0:01:36]} 39. a8=Q {[%clk 0:00:15]}  Nf2+ {[%clk 0:01:34]} 40. Qxf2 {[%clk 0:00:14]}  gxf2 {[%clk 0:01:35]} 41. Qb7+ {[%clk 0:00:12]}  Kg6 {[%clk 0:01:27]} 42. Nh4+ {[%clk 0:00:10]}  Kg5 {[%clk 0:01:23]} 43. Qg7+ {[%clk 0:00:06]}  Kf4 {[%clk 0:01:23]} 44. g3+ {[%clk 0:00:00]}  Ke4 {[%clk 0:01:21]} 0-1

[Event "December 12 Early 2023"]
[Site "https://www.chess.com"]
[Date "2023.12.12"]
[Round "10"]
[White "Goltseva, Ekaterina"]
[Black "Brodsky, David"]
[Result "0-1"]
[Board "54"]
[TimeControl "180+1"]
[WhiteFideId "24173770"]
[BlackFideId "2073250"]
[WhiteElo "2549"]
[BlackElo "2792"]
[WhiteTeam "RUS"]
[BlackTeam "USA"]
[WhiteClock "0:00:00"]
[BlackClock "0:00:01"]

1. d4 {[%clk 0:03:00]}  a6 {[%clk 0:02:59]} 2. a4 {[%clk 0:02:56]}  h6 {[%clk 0:02:56]} 3. h4 {[%clk 0:02:56]}  d5 {[%clk 0:02:55]} 4. Nf3 {[%clk 0:02:55]}  Nf6 {[%clk 0:02:55]} 5. g3 {[%clk 0:02:52]}  Bf5 {[%clk 0:02:47]} 6. Bg2 {[%clk 0:02:51]}  e6 {[%clk 0:02:47]} 7. Nbd2 {[%clk 0:02:46]}  Nc6 {[%clk 0:02:47]} 8. c3 {[%clk 0:02:44]}  Bd6 {[%clk 0:02:45]} 9. b4 {[%clk 0:02:42]}  O-O {[%clk 0:02:44]} 10. O-O {[%clk 0:02:38]}  e5 {[%clk 0:02:43]} 11. dxe5 {[%clk 0:02:35]}  Nxe5 {[%clk 0:02:44]} 12. Qb3 {[%clk 0:02:33]}  Nxf3+ {[%clk 0:02:29]} 13. Nxf3 {[%clk 0:02:34]}  Re8 {[%clk 0:02:28]} 14. Qa2 {[%clk 0:02:23]}  Ne4 {[%clk 0:02:17]} 15. Bd2 {[%clk 0:02:21]}  c6 {[%clk 0:02:10]} 16. Nd4 {[%clk 0:02:15]}  Bh7 {[%clk 0:02:08]} 17. Rad1 {[%clk 0:02:10]}  Qf6 {[%clk 0:02:07]} 18. Qb2 {[%clk 0:02:04]}  Be5 {[%clk 0:01:45]} 19. e3 {[%clk 0:01:44]}  Nd6 {[%clk 0:01:41]} 20. f4 {[%clk 0:01:32]}  Nc4 {[%clk 0:01:36]} 21. Qc1 {[%clk 0:01:03]}  Bxd4 {[%clk 0:01:25]} 22. cxd4 {[%clk 0:01:00]}  Be4 {[%clk 0:01:24]} 23. Bh3 {[%clk 0:00:56]}  Qg6 {[%clk 0:01:12]} 24. Kh2 {[%clk 0:00:54]}  Qh5 {[%clk 0:00:58]} 25. g4 {[%clk 0:00:30]}  Qxh4 {[%clk 0:00:55]} 26. Be1 {[%clk 0:00:31]}  Qe7 {[%clk 0:00:52]} 27. Bg3 {[%clk 0:00:26]}  Bh7 {[%clk 0:00:45]} 28. Rde1 {[%clk 0:00:17]}  Qxb4 {[%clk 0:00:41]} 29. f5 {[%clk 0:00:18]}  Qxa4 {[%clk 0:00:33]} 30. Rf2 {[%clk 0:00:14]}  Qa3 {[%clk 0:00:30]} 31. Qb1 {[%clk 0:00:11]}  b5 {[%clk 0:00:23]} 32. e4 {[%clk 0:00:10]}  Qc3 {[%clk 0:00:12]} 33. e5 {[%clk 0:00:08]}  Qxd4 {[%clk 0:00:12]} 34. e6 {[%clk 0:00:04]}  fxe6 {[%clk 0:00:13]} 35. Rf4 {[%clk 0:00:03]}  Qd2+ {[%clk 0:00:10]} 36. Rf2 {[%clk 0:00:04]}  Qc3 {[%clk 0:00:07]} 37. Rfe2 {[%clk 0:00:04]}  e5 {[%clk 0:00:03]} 38. Qd1 {[%clk 0:00:03]}  e4 {[%clk 0:00:03]} 39. Bg2 {[%clk 0:00:02]}  Qf6 {[%clk 0:00:02]} 40. Bf4 {[%clk 0:00:03]}  Qf7 {[%clk 0:00:02]} 41. Bh3 {[%clk 0:00:03]}  h5 {[%clk 0:00:02]} 42. Qd4 {[%clk 0:00:03]}  hxg4 {[%clk 0:00:02]} 43. Bxg4 {[%clk 0:00:04]}  Bxf5 {[%clk 0:00:02]} 44. Rg2 {[%clk 0:00:04]}  Bxg4 {[%clk 0:00:02]} 45. Rxg4 {[%clk 0:00:05]}  Re6 {[%clk 0:00:01]} 46. Reg1 {[%clk 0:00:06]}  Rh6+ {[%clk 0:00:02]} 47. Bxh6 {[%clk 0:00:05]}  Qh5+ {[%clk 0:00:02]} 48. Kg3 {[%clk 0:00:04]}  Qxh6 {[%clk 0:00:02]} 49. Kf2 {[%clk 0:00:02]}  Rf8+ {[%clk 0:00:02]} 50. Ke2 {[%clk 0:00:03]}  Rf6 {[%clk 0:00:02]} 51. Qa7 {[%clk 0:00:00]}  Qh2+ {[%clk 0:00:01]} 0-1

[Event "December 12 Early 2023"]
[Site "https://www.chess.com"]
[Date "2023.12.12"]
[Round "10"]
[White "Rogov, Matfey"]
[Black "Krysa, Leandro"]
[Result "1-0"]
[Board "57"]
[TimeControl "180+1"]
[WhiteFideId "44191308"]
[BlackFideId "116807"]
[WhiteElo "2528"]
[BlackElo "2720"]
[WhiteTeam "RUS"]
[BlackTeam "ARG"]
[WhiteClock "0:00:09"]
[BlackClock "0:00:05"]

1. e4 {[%clk 0:03:00]}  e5 {[%clk 0:02:58]} 2. Nf3 {[%clk 0:02:59]}  Nc6 {[%clk 0:02:59]} 3. Nc3 {[%clk 0:02:56]}  Nf6 {[%clk 0:02:58]} 4. d4 {[%clk 0:02:56]}  exd4 {[%clk 0:02:58]} 5. Nxd4 {[%clk 0:02:57]}  Bb4 {[%clk 0:02:59]} 6. Nxc6 {[%clk 0:02:57]}  bxc6 {[%clk 0:03:00]} 7. Bd3 {[%clk 0:02:58]}  d5 {[%clk 0:03:00]} 8. Bd2 {[%clk 0:02:56]}  O-O {[%clk 0:02:57]} 9. O-O {[%clk 0:02:55]}  Rb8 {[%clk 0:02:57]} 10. Re1 {[%clk 0:02:46]}  Re8 {[%clk 0:02:56]} 11. exd5 {[%clk 0:02:25]}  Rxe1+ {[%clk 0:02:49]} 12. Qxe1 {[%clk 0:02:22]}  cxd5 {[%clk 0:02:50]} 13. a3 {[%clk 0:02:17]}  Bf8 {[%clk 0:02:41]} 14. Rb1 {[%clk 0:02:12]}  h6 {[%clk 0:02:38]} 15. h3 {[%clk 0:02:11]}  c5 {[%clk 0:02:35]} 16. Bf4 {[%clk 0:01:35]}  Rb7 {[%clk 0:02:20]} 17. Qd2 {[%clk 0:01:28]}  Be6 {[%clk 0:02:12]} 18. b3 {[%clk 0:01:22]}  Re7 {[%clk 0:01:35]} 19. Re1 {[%clk 0:01:17]}  Qc8 {[%clk 0:01:19]} 20. Nb5 {[%clk 0:01:08]}  a6 {[%clk 0:01:07]} 21. Nd6 {[%clk 0:01:05]}  Qc6 {[%clk 0:01:08]} 22. Nf5 {[%clk 0:00:56]}  Bxf5 {[%clk 0:01:06]} 23. Rxe7 {[%clk 0:00:53]}  Bxd3 {[%clk 0:01:01]} 24. Rc7 {[%clk 0:00:49]}  Qe6 {[%clk 0:00:55]} 25. Qxd3 {[%clk 0:00:44]}  d4 {[%clk 0:00:56]} 26. Ra7 {[%clk 0:00:38]}  Nd5 {[%clk 0:00:54]} 27. Bg3 {[%clk 0:00:37]}  Nc3 {[%clk 0:00:50]} 28. Kh2 {[%clk 0:00:34]}  g5 {[%clk 0:00:26]} 29. Rxa6 {[%clk 0:00:30]}  Qd5 {[%clk 0:00:18]} 30. Qf3 {[%clk 0:00:24]}  Qd7 {[%clk 0:00:12]} 31. Ra8 {[%clk 0:00:21]}  Nd5 {[%clk 0:00:11]} 32. a4 {[%clk 0:00:19]}  Nb6 {[%clk 0:00:09]} 33. Rb8 {[%clk 0:00:19]}  Nd5 {[%clk 0:00:08]} 34. a5 {[%clk 0:00:19]}  Nb4 {[%clk 0:00:06]} 35. Qe4 {[%clk 0:00:15]}  Nc6 {[%clk 0:00:05]} 36. Ra8 {[%clk 0:00:14]}  Kg7 {[%clk 0:00:06]} 37. Be5+ {[%clk 0:00:12]}  f6 {[%clk 0:00:05]} 38. Bg3 {[%clk 0:00:10]}  Bd6 {[%clk 0:00:05]} 39. a6 {[%clk 0:00:09]}  Bxg3+ {[%clk 0:00:04]} 40. fxg3 {[%clk 0:00:10]}  f5 {[%clk 0:00:04]} 41. Qf3 {[%clk 0:00:09]}  Ne5 {[%clk 0:00:03]} 42. Qb7 {[%clk 0:00:08]}  Kf6 {[%clk 0:00:02]} 43. Qxd7 {[%clk 0:00:09]}  Nxd7 {[%clk 0:00:03]} 44. Rd8 {[%clk 0:00:08]}  Nb6 {[%clk 0:00:04]} 45. a7 {[%clk 0:00:09]}  Ke7 {[%clk 0:00:05]} 46. Rb8 {[%clk 0:00:09]}  Nd5 {[%clk 0:00:04]} 47. a8=Q {[%clk 0:00:09]}  Kd6 {[%clk 0:00:05]} 48. Rd8+ {[%clk 0:00:09]} 1-0